[Event "Czech Open-GM 2022"]
[Site "Pardubice"]
[Date "2022.07.22"]
[Round "1.32"]
[White "Kopriva, Martin"]
[Black "Nemec, Jachym"]
[Result "0-1"]
[ECO "B32"]
[WhiteElo "2124"]
[BlackElo "2357"]
[Annotator "TA"]
[PlyCount "68"]
[EventDate "2022.07.22"]
[EventType "swiss"]
[EventCountry "CZE"]
[SourceTitle "playchess.com"]
[Source "ChessBase"]
[SourceQuality "1"]
[TimeControl "40/5400+30:1800+30"]

{[%evp 10,68,48,37,41,25,29,31,30,26,52,30,50,43,43,35,50,40,45,47,64,44,39,46,22,27,69,0,0,-27,-13,-41,-50,-82,-81,-87,-73,-137,-135,-132,-130,-162,-167,-172,-160,-175,-152,-387,-141,-216,-181,-277,-256,-608,-604,-603,-289,-331,-327,-577,-575]} 1. e4 {[%emt 0:00:09]} c5 {[%emt 0:00:04]} 2. Nf3 {[%emt 0:00:07]} Nc6 {[%emt 0:00:08]} 3. d4 {[%emt 0:00:23]} cxd4 {[%emt 0:00:05]} 4. c3 {[%emt 0:00:24]} d3 {[%emt 0:10:05]} 5. Bxd3 {[%emt 0:00:20]} d6 {[%emt 0:00:05]} 6. O-O {[%emt 0:01:59]} g6 {[%emt 0:00:40] B21: Sicilian: 2 f4 and Morra Gambit.} 7. h3 {[%emt 0:06:04]} Bg7 {[%emt 0:00:04]} 8. Qe2 {[%emt 0:02:36]} Nf6 {[%emt 0:02:14] White is slightly better.} 9. Rd1 {[%emt 0:03:35]} Nd7 {[%emt 0:07:57] Against e5} 10. Na3 {[%emt 0:03:53]} O-O {[%emt 0:00:33]} 11. Bg5 {[%emt 0:04:25]} Nde5 {[%emt 0:04:54]} 12. Nxe5 {[%emt 0:03:22]} Nxe5 {[%emt 0:00:36]} 13. Bc2 {[%emt 0:02:05] [#]} Bd7 $146 {[%emt 0:20:13]} ({Predecessor:} 13... Be6 14. Kh2 h6 15. Bh4 g5 16. Bg3 Ng6 17. Qe3 Qa5 18. Bd3 Bxc3 19. bxc3 Qxa3 {½-½ (59) Gierulski,K (1901)-Eggink,R (2122) Olsztyn 2013}) 14. Bb3 {[%emt 0:05:44]} h6 {[%emt 0:02:52]} 15. Be3 {[%emt 0:06:30]} Bc6 {[%emt 0:04:44]} 16. f4 {[%emt 0:07:26]} Nd7 {[%emt 0:00:06]} 17. Bf2 {[%emt 0:01:48]} Qc8 {[%emt 0:10:36]} 18. Bh4 {[%emt 0:08:34]} (18. Nb5 $14) 18... Nc5 $11 {[%emt 0:08:28]} 19. Bd5 {[%emt 0:13:44]} Re8 {[%emt 0:02:20]} 20. Nc2 {[%emt 0:03:47]} Bxd5 {[%emt 0:02:22]} 21. Rxd5 {[%emt 0:00:35]} Qe6 $1 {[%emt 0:00:39]} 22. Re1 {[%emt 0:15:05]} f5 {[%emt 0:01:37][%cal Rc5e4]} 23. Rdd1 {[%emt 0:04:26]} ({White should play} 23. Ne3 Qxe4 24. Qf1) 23... Nxe4 $17 {[%emt 0:01:42]} 24. Nb4 {[%emt 0:00:42]} Qf7 {[%emt 0:01:36]} 25. Nd5 {[%emt 0:01:56]} e6 {[%emt 0:00:27]} 26. Ne3 {[%emt 0:00:01]} Rac8 {[%emt 0:04:59]} 27. Bf2 {[%emt 0:00:49]} Qc7 {[%emt 0:04:09]} 28. Nc2 $2 {[%emt 0:00:27] [#] Now White is beyond hope.} (28. Nf1 $17) 28... a6 $2 {[%emt 0:00:49]} (28... Bxc3 $1 $19 {[%mdl 512]} 29. bxc3 Nxc3) 29. Ne3 {[%emt 0:02:19]} (29. Qf3 $17) 29... Bf8 {[%emt 0:03:22]} 30. Kh1 {[%emt 0:01:17]} (30. Nf1 {is a better defense.}) 30... d5 $19 {[%emt 0:00:59]} 31. g4 $2 {[%emt 0:00:28]} (31. g3) 31... Qxf4 {[%emt 0:01:15]} 32. Rf1 {[%emt 0:00:34] [#]} Nxf2+ {[%emt 0:00:48]} (32... Qg3 $142 $3 {[%mdl 512]} 33. Bxg3 Nxg3+ 34. Kg2 Nxe2) 33. Rxf2 {[%emt 0:00:09]} Qe4+ {[%emt 0:00:04]} 34. Kg1 $2 {[%emt 0:00:14]} (34. Qf3 {was necessary.}) 34... Bc5 {[%emt 0:00:09] Weighted Error Value: White=0.46/Black=0.28 (precise)} 0-1

[Event "Czech Open-GM 2022"]
[Site "Pardubice"]
[Date "2022.07.22"]
[Round "1.33"]
[White "Malek, Daniel"]
[Black "Elmi, Saad Abobaker"]
[Result "1/2-1/2"]
[ECO "B51"]
[WhiteElo "2355"]
[BlackElo "2123"]
[Annotator "TA"]
[PlyCount "178"]
[EventDate "2022.07.22"]
[EventType "swiss"]
[EventCountry "CZE"]
[SourceTitle "playchess.com"]
[Source "ChessBase"]
[SourceQuality "1"]
[TimeControl "40/5400+30:1800+30"]

{[%evp 9,178,12,14,6,18,36,19,19,19,29,33,26,82,51,132,138,152,144,140,148,152,133,178,176,187,122,130,121,126,112,129,129,129,45,43,23,40,47,151,118,125,118,120,94,108,81,116,116,118,116,116,112,116,116,148,95,104,105,177,183,198,198,176,57,67,26,302,102,302,244,270,5,302,102,160,102,102,102,112,102,102,102,102,102,102,102,102,102,102,102,131,102,102,102,160,102,102,102,102,102,102,102,160,102,135,146,146,160,160,102,102,0,160,0,160,102,102,102,102,160,160,160,160,160,213,0,0,0,0,0,0,0,2,0,0,0,29,29,29,29,29,29,29,29,29,29,29,29,29,29,29,32,54,0,0,0,0,0,0,0,0,0,0,0,0,0,0,0,0,0,0]} 1. e4 {[%emt 0:00:04]} c5 {[%emt 0:00:21]} 2. Nf3 {[%emt 0:00:06]} d6 {[%emt 0:00:13]} 3. Bb5+ {[%emt 0:00:07]} Nd7 {[%emt 0:00:14]} 4. a4 {[%emt 0:00:28]} a6 {[%emt 0:01:34]} 5. Be2 {[%emt 0:00:40]} Ngf6 {[%emt 0:00:23]} 6. Nc3 {[%emt 0:00:08] B51: Sicilian: Moscow Variation (3 Bb5+) without 3...Bd7.} g6 {[%emt 0:00:51]} 7. O-O {[%emt 0:00:35]} Bg7 {[%emt 0:00:17]} 8. a5 {[%emt 0:01:26]} O-O {[%emt 0:00:34]} 9. d3 {[%emt 0:08:13]} Nb8 {[%emt 0:03:16]} 10. e5 {[%emt 0:07:01]} Nh5 {[%emt 0:09:31]} (10... Ne8 $11) 11. exd6 {[%emt 0:03:33] [#]} Qxd6 $146 {[%emt 0:00:21]} (11... exd6 $14 12. Nd2 Nf6) ({Predecessor:} 11... exd6 12. Nd5 Nc6 13. Bg5 Nf6 14. Qd2 Be6 15. Nf4 Bf5 16. Nd5 Re8 17. Rfe1 Be6 {0-1 (42) Yuan,Q (2373)-Andreikin,D (2725) Chess.com INT 2021}) 12. Nd2 $1 $16 {[%emt 0:01:36][%cal Bf3d2,Bd2c4,Bc4b6][%mdl 32] Hoping for Nc4.} Nf6 {[%emt 0:03:28]} 13. Nc4 {[%emt 0:01:14]} Qc7 {[%emt 0:00:15]} 14. Nb6 {[%emt 0:07:37]} Ra7 {[%emt 0:00:09]} 15. Be3 {[%emt 0:00:56]} Be6 {[%emt 0:05:04]} 16. Nca4 {[%emt 0:02:04]} Nbd7 {[%emt 0:02:15]} 17. b4 {[%emt 0:03:54]} ({White should try} 17. Bf3 $18) 17... Nd5 {[%emt 0:01:30]} 18. Nxd5 {[%emt 0:03:06]} Bxd5 {[%emt 0:00:09] [#]} 19. Nxc5 $1 {[%emt 0:02:36]} Nxc5 {[%emt 0:02:31]} (19... Raa8 20. Nxd7) 20. Bxc5 {[%emt 0:00:10]} Bxa1 {[%emt 0:01:32]} 21. Bxa7 {[%emt 0:08:36]} (21. Qxa1 $16 Raa8 22. c4) 21... Be5 $14 {[%emt 0:01:46]} 22. g3 {[%emt 0:00:12]} (22. h3 $5 {[%cal Rc2c4]}) 22... Bc3 {[%emt 0:06:24]} 23. Bc5 {[%emt 0:00:25]} Rc8 {[%emt 0:02:43]} ({Black should play} 23... Qc6 $1 $14) 24. Bf3 {[%emt 0:03:30]} Bxf3 {[%emt 0:00:36]} 25. Qxf3 {[%emt 0:00:07]} e5 {[%emt 0:00:12] Prevents d4.} 26. Qe4 {[%emt 0:05:45] White is more active.} Qd7 {[%emt 0:01:23]} 27. Rb1 {[%emt 0:01:36]} Kg7 {[%emt 0:02:41]} 28. Qc4 $36 {[%emt 0:04:45][%mdl 2048] White is on the roll.} Bd4 {[%emt 0:00:54]} 29. c3 {[%emt 0:00:07]} Bxc5 {[%emt 0:01:39]} 30. bxc5 $16 {[%emt 0:00:07][%mdl 4096] Endgame KQR-KQR} Rd8 {[%emt 0:07:44]} 31. Qe4 {[%emt 0:02:26][%csl LRb7,LRe5]} Qd5 {[%emt 0:01:17]} 32. Rxb7 {[%emt 0:02:30]} (32. Qe3 $142 $1) 32... Qxe4 {[%emt 0:00:57]} 33. dxe4 {[%emt 0:00:06] KR-KR} Rc8 {[%emt 0:00:59]} (33... Rd1+ $16 {keeps fighting.} 34. Kg2 Ra1) 34. Rb6 $18 {[%emt 0:00:28]} Rxc5 {[%emt 0:00:06]} 35. Rxa6 {[%emt 0:00:05]} Rxc3 {[%emt 0:00:47]} 36. Ra8 {[%emt 0:14:01]} (36. g4 $18) 36... Rc4 $1 $14 {[%emt 0:01:41]} 37. f3 {[%emt 0:00:31]} Rc2 $2 {[%emt 0:00:29][%mdl 8192]} (37... Rc1+ $1 $11 38. Kg2 Rc2+ 39. Kh3 Rc3) 38. a6 $2 {[%emt 0:00:08]} (38. h4 $18 {and White stays clearly on top.}) 38... Ra2 $2 {[%emt 0:00:25]} (38... Rc1+ $16 {might work better.} 39. Kg2 Rc2+ 40. Kh3 Ra2) 39. a7 {[%emt 0:03:03]} g5 {[%emt 0:03:32]} 40. h4 $2 {[%emt 0:03:49]} (40. h3 $18) 40... h6 $2 {[%emt 0:01:16][%mdl 8192]} (40... gxh4 $11 {and Black has nothing to worry.} 41. gxh4 Kh6) 41. h5 $2 {[%emt 0:31:40]} (41. Kf1 $1 $18) 41... Kf6 {[%emt 0:33:27] [#]} (41... Kh7 $142 42. Kf1 Kg7) 42. Kf1 {[%emt 0:00:17]} (42. Rh8 $142 $1 Rxa7 43. Rxh6+ Kg7 44. Rb6) 42... Kg7 $16 {[%emt 0:01:40]} 43. Ke1 {[%emt 0:00:07]} Kf6 {[%emt 0:00:41]} 44. Kd1 {[%emt 0:00:06]} Kg7 {[%emt 0:01:03]} 45. Kc1 {[%emt 0:00:05]} Kf6 {[%emt 0:00:30]} 46. Kb1 {[%emt 0:00:06]} Ra4 {[%emt 0:05:42]} 47. Kc2 {[%emt 0:00:10]} Kg7 {[%emt 0:00:37]} 48. Kb3 {[%emt 0:00:05]} Ra1 {[%emt 0:00:19]} 49. Kc4 {[%emt 0:00:23]} Kf6 {[%emt 0:01:17]} 50. Kc5 {[%emt 0:01:29]} Rc1+ {[%emt 0:00:35]} 51. Kd6 {[%emt 0:00:44] Threatening mate with Rd8.} Ra1 {[%emt 0:01:54]} (51... Rd1+ $142 52. Kc7 Rc1+ 53. Kb7 Rb1+ 54. Kc8 Rc1+ 55. Kd8 Ra1) 52. Kd7 {[%emt 0:01:13]} (52. g4 $142) 52... Ra6 {[%emt 0:00:28]} 53. Ke8 {[%emt 0:02:01] Strongly threatening Kf8.} Kg7 {[%emt 0:00:20]} 54. Ke7 {[%emt 0:00:23]} Ra3 {[%emt 0:01:44]} 55. Kd6 {[%emt 0:03:34]} Kf6 {[%emt 0:02:09]} (55... Ra5 $142 56. Kc6 Ra2) 56. Kd5 {[%emt 0:06:09]} ({Better is} 56. g4) 56... Rd3+ {[%emt 0:01:12]} 57. Kc6 {[%emt 0:00:21]} Ra3 {[%emt 0:00:26]} 58. Kb6 {[%emt 0:00:11]} Rb3+ {[%emt 0:00:20]} 59. Kc7 {[%emt 0:00:14]} (59. Ka5 $142 Ra3+ 60. Kb6 Rb3+ 61. Kc6) 59... Ra3 {[%emt 0:00:15]} 60. Kd7 {[%emt 0:01:08]} (60. Kc8 $142) 60... Ra6 $1 {[%emt 0:00:23]} 61. Ke8 {[%emt 0:00:20] Threatens to win with Kf8.} Kg7 $1 {[%emt 0:00:23] [#]} 62. g4 {[%emt 0:00:32]} (62. Kd8 $142 $1) 62... Re6+ {[%emt 0:02:08]} 63. Kd7 {[%emt 0:00:20]} Ra6 {[%emt 0:00:12]} 64. Kc7 {[%emt 0:00:21]} Ra3 {[%emt 0:00:37]} 65. Kb6 {[%emt 0:00:32] White threatens Rd8 and mate.} Rb3+ {[%emt 0:00:18]} 66. Kc6 {[%emt 0:00:52] Re8 would kill now.} Ra3 {[%emt 0:00:21]} 67. Re8 $2 {[%emt 0:00:00]} (67. Kc5 $18) 67... Rxa7 $11 {[%emt 0:00:00]} 68. Rxe5 {[%emt 0:00:00]} Ra3 {[%emt 0:00:00]} 69. Rf5 {[%emt 0:00:00]} Rd3 {[%emt 0:00:00]} 70. Kc5 {[%emt 0:00:00]} Ra3 {[%emt 0:00:00]} 71. f4 {[%emt 0:00:00]} gxf4 {[%emt 0:00:00] aiming for ...Ra5+.} 72. Rxf4 {[%emt 0:00:00]} Rd3 {[%emt 0:00:00]} 73. e5 {[%emt 0:00:00]} Ra3 {[%emt 0:00:00]} 74. Kd5 {[%emt 0:00:00]} Re3 {[%emt 0:00:00]} 75. Kd4 {[%emt 0:00:00]} Rb3 {[%emt 0:00:00]} 76. Ke4 {[%emt 0:00:00]} Rb4+ {[%emt 0:00:00]} 77. Kf5 {[%emt 0:00:00]} Rb5 {[%emt 0:00:00]} 78. Ra4 {[%emt 0:00:00]} Rc5 {[%emt 0:00:00]} 79. Ra7 {[%emt 0:00:00]} Kg8 {[%emt 0:00:00]} 80. Ra6 {[%emt 0:00:00]} Kg7 {[%emt 0:00:00]} 81. g5 {[%emt 0:00:00]} (81. Ra1 $14) 81... hxg5 {[%emt 0:00:00] The position is equal.} 82. h6+ {[%emt 0:00:00]} Kh7 {[%emt 0:00:00]} 83. Rf6 {[%emt 0:00:00]} g4 {[%emt 0:00:00]} 84. Rxf7+ {[%emt 0:00:00]} Kxh6 {[%emt 0:00:00]} 85. Rf6+ {[%emt 0:00:00]} Kh5 {[%emt 0:00:00]} 86. Rf8 {[%emt 0:00:00][%cal Rf8h8]} Kh4 {[%emt 0:00:00]} 87. Rg8 {[%emt 0:00:00]} Kh3 {[%emt 0:00:00]} 88. Rh8+ {[%emt 0:00:00]} Kg2 {[%emt 0:00:00]} 89. Kxg4 {[%emt 0:00:00] White wants to mate with Kf4.} Rxe5 {[%emt 0:00:00] Weighted Error Value: White=0.34/Black=0.33} 1/2-1/2

[Event "Czech Open-GM 2022"]
[Site "Pardubice"]
[Date "2022.07.22"]
[Round "1.34"]
[White "Zdrazil, Tomas"]
[Black "Kusa, Jakub"]
[Result "0-1"]
[ECO "C82"]
[WhiteElo "2122"]
[BlackElo "2353"]
[Annotator "TA"]
[PlyCount "52"]
[EventDate "2022.07.22"]
[EventType "swiss"]
[EventCountry "CZE"]
[SourceTitle "playchess.com"]
[Source "ChessBase"]
[SourceQuality "1"]
[TimeControl "40/5400+30:1800+30"]

{[%evp 30,52,0,0,18,9,10,0,0,-94,-87,-237,-105,-105,-105,-104,-103,-258,-272,-567,-530,-766,-766,-29996,-29997]} 1. e4 {[%emt 0:00:03]} e5 {[%emt 0:00:10]} 2. Nf3 {[%emt 0:00:05]} Nc6 {[%emt 0:00:06]} 3. Bb5 {[%emt 0:00:05][%cal Bf1b5,Bb5a4,Ba4b3,Bb3c2][%mdl 32]} a6 {[%emt 0:00:20]} 4. Ba4 {[%emt 0:00:05]} Nf6 {[%emt 0:00:26]} 5. O-O {[%emt 0:00:07]} Nxe4 {[%emt 0:00:15]} 6. d4 {[%emt 0:00:25]} b5 {[%emt 0:00:07]} 7. Bb3 {[%emt 0:00:05]} d5 {[%emt 0:00:19]} 8. dxe5 {[%emt 0:00:05]} Be6 {[%emt 0:00:12]} 9. Nbd2 {[%emt 0:00:08]} Bc5 {[%emt 0:02:43]} 10. c3 {[%emt 0:00:10]} O-O {[%emt 0:00:52]} 11. Bc2 {[%emt 0:00:02]} Nxf2 {[%emt 0:00:24]} 12. Rxf2 {[%emt 0:00:03]} f6 {[%emt 0:00:18]} 13. exf6 {[%emt 0:00:53]} Bxf2+ {[%emt 0:00:08]} 14. Kxf2 {[%emt 0:00:05]} Qxf6 {[%emt 0:00:19]} 15. Kg1 {[%emt 0:01:13]} Rae8 {[%emt 0:02:03]} 16. Qf1 {[%emt 0:46:25]} Kh8 {[%emt 0:08:59] [#] C82: Open Ruy Lopez: 9 c3 without 9...Be7.} 17. Nb3 $146 {[%emt 0:10:01]} ({Predecessor:} 17. h3 Rf7 18. a4 b4 19. Qd3 g6 20. Nf1 Bf5 21. Bg5 Qd6 22. Qd1 bxc3 23. bxc3 Ne5 24. Nxe5 Qxe5 25. Bxf5 Qxf5 {0-1 (35) Budzinski,J (1881)-Smolka,M (1858) Ustron 2010}) 17... Ne5 {[%emt 0:04:25] Threatens to win with ...Bg4.} 18. Nbd4 {[%emt 0:02:32]} Bg4 {[%emt 0:07:49] White must now prevent ...c5. The position is equal.} 19. Bg5 {[%emt 0:00:52]} (19. Bd2 $1 $11 {keeps the balance.}) 19... Qd6 $1 $17 {[%emt 0:03:17] ...c5 is the strong threat.} 20. Qf2 {[%emt 0:31:11] [#]} (20. b4 $17 {might work better.}) 20... c5 {[%emt 0:05:59]} (20... h6 $1 $19 {[%cal Rh6g5] and Black stays clearly on top.} 21. Bh4 c5) 21. Qh4 {[%emt 0:00:22][%csl Gc2][%cal Rh4h7]} h6 {[%emt 0:01:21]} 22. Nxe5 {[%emt 0:04:06]} Rxe5 {[%emt 0:00:29][%cal Be8e5,Be5g5,Bg5g2][%mdl 32] Dancing on a razor blade.} 23. Qxg4 {[%emt 0:00:56]} (23. Bd2 $17 {was forced.} cxd4 24. Qxg4) 23... Rxg5 $19 {[%emt 0:00:44]} 24. Qe6 {[%emt 0:00:04]} (24. Qe2 cxd4 25. Qd3) 24... Qf4 {[%emt 0:00:57] ( -> ...Qf2+)} 25. Nf5 {[%emt 0:01:42] [#]} Qd2 $1 {[%emt 0:01:14][%csl Gg5][%cal Rd2g2]} ({Stronger than} 25... Rgxf5 26. Bxf5 Rxf5 27. Qc8+ Kh7 28. Qxc5 $17) 26. Ne3 {[%emt 0:01:07] [#]} Rxg2+ $3 {[%emt 0:00:47][%mdl 576] Back Rank.  Weighted Error Value: White=1.52/Black=0.14 (very precise)} 0-1

[Event "Czech Open-GM 2022"]
[Site "Pardubice"]
[Date "2022.07.22"]
[Round "1.35"]
[White "Skytte, Rasmus"]
[Black "Ocelak, Jakub"]
[Result "1-0"]
[ECO "C03"]
[WhiteElo "2349"]
[BlackElo "2120"]
[Annotator "TA"]
[PlyCount "87"]
[EventDate "2022.07.22"]
[EventType "swiss"]
[EventCountry "CZE"]
[SourceTitle "playchess.com"]
[Source "ChessBase"]
[SourceQuality "1"]
[TimeControl "40/5400+30:1800+30"]

{[%evp 20,87,16,10,12,11,4,0,48,36,73,75,86,82,106,107,162,168,352,352,349,182,167,139,120,129,233,223,243,235,212,228,195,164,205,150,152,151,153,151,166,159,170,170,165,165,504,497,496,489,475,460,433,422,377,251,379,300,420,420,416,409,420,420,418,418,413,413,395,392]} 1. e4 {[%emt 0:00:03]} e6 {[%emt 0:00:17]} 2. d4 {[%emt 0:00:44]} d5 {[%emt 0:00:04]} 3. Nd2 {[%emt 0:00:25]} Be7 {[%emt 0:00:06]} 4. Ngf3 {[%emt 0:00:37]} Nf6 {[%emt 0:00:02]} 5. Bd3 {[%emt 0:00:24]} c5 {[%emt 0:00:07]} 6. c3 {[%emt 0:00:34]} cxd4 {[%emt 0:05:43]} 7. cxd4 {[%emt 0:00:08]} dxe4 {[%emt 0:00:21]} 8. Nxe4 {[%emt 0:00:10]} Nbd7 {[%emt 0:11:00]} 9. O-O {[%emt 0:02:05]} O-O {[%emt 0:07:14]} 10. Ne5 {[%emt 0:10:13]} Nxe4 {[%emt 0:05:33]} 11. Bxe4 {[%emt 0:02:22]} Nf6 {[%emt 0:00:18] D05: Colle System with ...e6.} 12. Bf3 {[%emt 0:02:16]} Qb6 {[%emt 0:01:32]} 13. a4 {[%emt 0:06:48][%cal Ba2a4,Ba4a5][%mdl 32] [#]} a6 $146 {[%emt 0:05:48]} (13... Rd8 $11 {is superior.}) ({Predecessor:} 13... Rd8 14. a5 Qxd4 15. Qxd4 Rxd4 16. Bg5 h6 {0-1 (52) Van der Joeven,J-Almiron,L ICCF email 2000}) 14. a5 {[%emt 0:06:51]} Qa7 {[%emt 0:05:20]} 15. Be3 {[%emt 0:03:08]} Nd5 {[%emt 0:06:02]} 16. Qb3 {[%emt 0:04:39]} Rd8 {[%emt 0:01:50]} 17. Nc4 {[%emt 0:05:58]} Nxe3 {[%emt 0:04:19]} (17... Qb8 $16) 18. fxe3 $18 {[%emt 0:00:36]} Rb8 $2 {[%emt 0:01:09]} (18... Bd7) 19. Nb6 {[%emt 0:05:11]} Bd7 {[%emt 0:02:32]} 20. Rac1 {[%emt 0:00:59]} (20. Bg4 $142 Bb5 {[#]} 21. Bxe6 $1 {[%mdl 512]} fxe6 22. Qxe6+ Kh8 23. Qxe7) 20... Bb5 {[%emt 0:03:03]} 21. Rf2 {[%emt 0:02:35] And now Bg4 would win.} Rf8 {[%emt 0:02:52]} 22. d5 {[%emt 0:05:46][%cal Bd4d5,Bd5e6,Be6f7][%mdl 32] 0x0.00144a550085dp-1022s more active pieces. The black rooks are badly placed.} Bd8 {[%emt 0:05:20]} (22... exd5 $16 {was called for.} 23. Bxd5 Kh8) 23. dxe6 {[%emt 0:03:08]} Bxb6 {[%emt 0:00:12]} 24. exf7+ {[%emt 0:01:53]} Kh8 {[%emt 0:00:02]} 25. axb6 {[%emt 0:00:11]} Qxb6 {[%emt 0:00:02]} 26. Be2 {[%emt 0:04:26]} Rbd8 {[%emt 0:02:06]} 27. Bxb5 {[%emt 0:01:49]} axb5 {[%emt 0:00:02]} 28. h3 {[%emt 0:02:00]} h6 {[%emt 0:01:38]} 29. Rcf1 $36 {[%emt 0:03:15][%mdl 2048] White is on the roll.} b4 {[%emt 0:02:54]} 30. Rf4 {[%emt 0:02:57]} Rd2 {[%emt 0:01:34]} 31. Rxb4 {[%emt 0:03:43]} Qc6 {[%emt 0:00:09][%csl Gd2][%cal Rc6g2]} 32. Rg4 {[%emt 0:01:20] Strongly threatening Qa3.} h5 $2 {[%emt 0:05:20]} (32... Rd7 {is more resistant.} 33. Rd4 Re7) 33. Rg5 {[%emt 0:06:35]} g6 {[%emt 0:02:55] [#]} 34. Rxg6 $3 {[%emt 0:06:33][%mdl 512]} Qxg6 {[%emt 0:01:35][%csl Gd2][%cal Rg6g2]} 35. Qc3+ {[%emt 0:00:05]} Kh7 {[%emt 0:00:05][%csl Gd2][%cal Rg6g2]} 36. Qxd2 {[%emt 0:00:05]} Rxf7 {[%emt 0:00:04][%mdl 4096] Endgame KQR-KQR} 37. Rd1 {[%emt 0:04:36] aiming for Qd5.} Rc7 {[%emt 0:01:17]} (37... Qe4 $142 38. Qe2 Qe5) 38. Qd6 {[%emt 0:03:00]} Qxd6 {[%emt 0:08:06]} 39. Rxd6 {[%emt 0:00:06] KR-KR. White is winning.} Rc1+ {[%emt 0:00:03]} 40. Kh2 {[%emt 0:00:06]} Re1 {[%emt 0:00:03]} 41. Rd3 {[%emt 0:30:37]} Kg6 {[%emt 0:30:40]} 42. Kg3 {[%emt 0:01:25]} Kf5 {[%emt 0:00:03]} 43. Rb3 {[%emt 0:00:36]} Ke4 {[%emt 0:00:10]} 44. Rxb7 {[%emt 0:00:26] Weighted Error Value: White=0.17 (very precise) /Black=0.34} 1-0

[Event "Czech Open-GM 2022"]
[Site "Pardubice"]
[Date "2022.07.22"]
[Round "1.36"]
[White "Shubin, Daniel"]
[Black "Rabatin, Jakub"]
[Result "0-1"]
[ECO "B94"]
[WhiteElo "2120"]
[BlackElo "2349"]
[Annotator "TA"]
[PlyCount "84"]
[EventDate "2022.07.22"]
[EventType "swiss"]
[EventCountry "CZE"]
[SourceTitle "playchess.com"]
[Source "ChessBase"]
[SourceQuality "1"]
[TimeControl "40/5400+30:1800+30"]

{[%evp 13,84,-12,22,0,4,0,6,0,6,0,0,0,0,-8,0,0,0,-34,-43,-64,-60,-95,-80,-92,-87,-90,-90,-102,-108,-102,-104,-127,-122,-128,-118,-119,-124,-127,-126,-121,-122,-141,-126,-139,-112,-204,-170,-298,-289,-364,-214,-137,-156,-500,-434,-460,-371,-456,-396,-1107,-1086,-1506,-1502,-1374,-1384,-1192,-983,-1165,-1087,-1105,-945,-12835,-12833]} 1. e4 {[%emt 0:00:03]} c5 {[%emt 0:00:09]} 2. Nf3 {[%emt 0:00:05][%cal Bg1f3,Bf3d4,Bd4f5][%mdl 32]} d6 {[%emt 0:00:04]} 3. d4 cxd4 {[%emt 0:00:04]} 4. Nxd4 {[%emt 0:00:07]} Nf6 {[%emt 0:00:05]} 5. Nc3 {[%emt 0:00:04]} a6 {[%emt 0:00:04]} 6. Bg5 {[%emt 0:00:05]} Nbd7 {[%emt 0:00:25]} 7. f4 {[%emt 0:00:36] 7.Qe2 is a critical line.} Qc7 {[%emt 0:02:20]} 8. Qe2 {[%emt 0:16:59] B94: Sicilian Najdorf: 6 Bg5 Nbd7.} e5 {[%emt 0:03:17]} 9. Nf5 {[%emt 0:02:34]} h6 {[%emt 0:02:36]} 10. Bxf6 {[%emt 0:00:48] The position is equal.} Nxf6 {[%emt 0:00:04]} 11. Ne3 {[%emt 0:00:12]} exf4 {[%emt 0:19:20]} 12. Ned5 {[%emt 0:00:34]} Nxd5 {[%emt 0:00:08]} 13. Nxd5 {[%emt 0:00:51]} Qc5 {[%emt 0:02:16] [#]} 14. b4 $146 {[%emt 0:21:11]} ({Predecessor:} 14. Qc4 Rb8 15. Qb3 Be6 16. O-O-O Be7 17. Bxa6 O-O 18. Nxe7+ Kh7 19. Qd3 bxa6 20. e5+ {0-1 (29) Gebigke,M (2139)-Glantz,R (2271) Berlin 2014}) 14... Qc6 {[%emt 0:01:59]} 15. Qf2 {[%emt 0:02:43] aiming for b5.} Be6 {[%emt 0:05:48]} 16. b5 {[%emt 0:06:33]} Qc8 {[%emt 0:00:17]} (16... axb5 $2 17. Bxb5 $1 {[%mdl 512]} Bxd5 18. c4 (18. Bxc6+ Bxc6 19. Qd4 Rg8 $16) 18... Bxe4 19. O-O $18 (19. Qxf4 f5 $18)) 17. Bd3 {[%emt 0:15:14]} Bxd5 {[%emt 0:06:59]} 18. exd5 {[%emt 0:00:02]} Qc3+ {[%emt 0:05:15]} 19. Ke2 {[%emt 0:00:13]} Be7 {[%emt 0:01:21][%cal Bf8e7,Be7f6,Bf6c3][%mdl 32]} 20. Qxf4 {[%emt 0:06:46]} O-O {[%emt 0:04:40]} 21. Qc4 {[%emt 0:02:47]} (21. Qe4 $2 f5 $1 22. Qf3 (22. Qxe7 $2 Rfe8 $19) 22... Bd8 $19) 21... Qa5 $36 {[%emt 0:16:51][%mdl 2048] Black has strong initiative.} 22. Rhe1 {[%emt 0:02:49] [#]} ({Avoid the trap} 22. Qe4 $2 g6 $1 23. Qf3 (23. Qxe7 $2 Rfe8 $19) 23... Rae8 $17) 22... Bf6 $1 {[%emt 0:04:35]} (22... Bg5 23. Kf1 $15) 23. Rab1 {[%emt 0:01:23]} Bc3 {[%emt 0:04:49]} ({Inferior is} 23... Bg5 24. Kf1 $15) 24. Red1 {[%emt 0:00:43]} Rac8 {[%emt 0:03:05]} 25. Qf4 {[%emt 0:02:04]} Be5 {[%emt 0:02:01]} 26. Qb4 {[%emt 0:04:28]} Qxa2 {[%emt 0:03:30]} 27. bxa6 {[%emt 0:03:20]} bxa6 {[%emt 0:00:20]} ({Stronger than} 27... Rfe8 28. Qb3 Qxb3 29. Rxb3 bxa6 30. Kf3 $17) 28. Kf1 {[%emt 0:03:51]} a5 {[%emt 0:04:31]} (28... Bxh2 $2 29. Ra1 Qxa1 30. Rxa1 $18) 29. Qe4 {[%emt 0:01:59]} (29. Qb3 $17 {might work better.} Qxb3 30. Rxb3) 29... g6 {[%emt 0:00:55] Active counter play!} 30. Rb7 {[%emt 0:00:41]} (30. Kg1 $142) 30... Rb8 $19 {[%emt 0:01:10]} 31. Ra7 {[%emt 0:01:15]} Rb1 {[%emt 0:01:34]} (31... Bxh2 $142 {Hoping for ...Be5.} 32. Qe1 a4) 32. Rxb1 {[%emt 0:01:18]} Qxb1+ {[%emt 0:00:05]} 33. Ke2 $2 {[%emt 0:00:02] This costs White the game.} (33. Qe1 $17 Qb6 34. Ra6) 33... Bxh2 {[%emt 0:02:48]} 34. Rxa5 {[%emt 0:02:40]} Qb8 {[%emt 0:02:01] Prevents Ra7. Strongly threatening ...Re8.} 35. Rb5 {[%emt 0:00:58]} Qd8 {[%emt 0:00:18] ...Re8 is the strong threat.} 36. Kf2 $2 {[%emt 0:00:46]} (36. Kf1) 36... Re8 {[%emt 0:01:06] Black is clearly winning.} 37. Qf3 {[%emt 0:00:26]} Qh4+ {[%emt 0:01:09]} 38. g3 {[%emt 0:00:15]} Qd4+ {[%emt 0:00:09]} 39. Kg2 {[%emt 0:00:42]} Qg1+ {[%emt 0:00:40]} 40. Kh3 {[%emt 0:00:04]} Re3 {[%emt 0:00:33]} 41. Rb8+ {[%emt 0:30:55]} Kg7 {[%emt 0:30:09]} 42. Rb1 {[%emt 0:00:19]} Rxf3 {[%emt 0:00:28] Weighted Error Value: White=0.80/Black=0.11 (very precise)} 0-1